[Event "Titled Tuesday Blitz May 25 2021"]
[White "Martinez Alcantara, Jose Eduardo"]
[Black "Khanin, Semen"]
[WhiteFideId "3805662"]
[BlackFideId "4111990"]
[WhiteElo "2690"]
[BlackElo "2521"]
[Result "0-1"]
[Round "09"]
[TimeControl "180+1"]
[Date "2021.05.25"]
[WhiteClock "0:00:05"]
[BlackClock "0:00:14"]

1. e4 {[%clk 0:03:00]}  g6 {[%clk 0:02:59]} 2. d4 {[%clk 0:02:59]}  Bg7 {[%clk 0:03:00]} 3. Nc3 {[%clk 0:02:59]}  d6 {[%clk 0:03:00]} 4. Nf3 {[%clk 0:02:44]}  Nf6 {[%clk 0:02:59]} 5. Be2 {[%clk 0:02:43]}  O-O {[%clk 0:02:59]} 6. O-O {[%clk 0:02:42]}  a6 {[%clk 0:03:00]} 7. a4 {[%clk 0:02:42]}  Nc6 {[%clk 0:03:00]} 8. h3 {[%clk 0:02:39]}  e6 {[%clk 0:03:00]} 9. Re1 {[%clk 0:02:28]}  b6 {[%clk 0:03:00]} 10. Bf1 {[%clk 0:02:17]}  Bb7 {[%clk 0:03:01]} 11. Bf4 {[%clk 0:02:11]}  Re8 {[%clk 0:02:55]} 12. Qd2 {[%clk 0:02:06]}  e5 {[%clk 0:02:52]} 13. dxe5 {[%clk 0:02:03]}  dxe5 {[%clk 0:02:46]} 14. Be3 {[%clk 0:01:55]}  Qxd2 {[%clk 0:02:43]} 15. Nxd2 {[%clk 0:01:56]}  Nd4 {[%clk 0:02:41]} 16. Rac1 {[%clk 0:01:47]}  Rad8 {[%clk 0:02:40]} 17. f3 {[%clk 0:01:42]}  h5 {[%clk 0:02:37]} 18. h4 {[%clk 0:01:41]}  Kh7 {[%clk 0:02:36]} 19. Ncb1 {[%clk 0:01:36]}  Bh6 {[%clk 0:02:35]} 20. Bxh6 {[%clk 0:01:34]}  Kxh6 {[%clk 0:02:35]} 21. c3 {[%clk 0:01:35]}  Ne6 {[%clk 0:02:30]} 22. b4 {[%clk 0:01:25]}  g5 {[%clk 0:02:27]} 23. hxg5+ {[%clk 0:01:23]}  Kxg5 {[%clk 0:02:27]} 24. Nc4 {[%clk 0:01:17]}  Nf4 {[%clk 0:02:27]} 25. Rcd1 {[%clk 0:01:13]}  Rxd1 {[%clk 0:02:18]} 26. Rxd1 {[%clk 0:01:12]}  h4 {[%clk 0:02:19]} 27. Kf2 {[%clk 0:01:07]}  Bc6 {[%clk 0:02:00]} 28. a5 {[%clk 0:01:07]}  b5 {[%clk 0:02:00]} 29. Ne3 {[%clk 0:01:08]}  N6h5 {[%clk 0:01:54]} 30. c4 {[%clk 0:01:04]}  Rb8 {[%clk 0:01:37]} 31. c5 {[%clk 0:00:50]}  Ng3 {[%clk 0:01:37]} 32. Nc3 {[%clk 0:00:48]}  f5 {[%clk 0:01:34]} 33. exf5 {[%clk 0:00:46]}  Nxf5 {[%clk 0:01:34]} 34. Nxf5 {[%clk 0:00:45]}  Kxf5 {[%clk 0:01:34]} 35. Bd3+ {[%clk 0:00:46]}  Nxd3+ {[%clk 0:01:31]} 36. Rxd3 {[%clk 0:00:46]}  Rg8 {[%clk 0:01:29]} 37. Rd1 {[%clk 0:00:39]}  Rg7 {[%clk 0:01:07]} 38. Rd2 {[%clk 0:00:32]}  e4 {[%clk 0:01:00]} 39. Ne2 {[%clk 0:00:18]}  exf3 {[%clk 0:00:51]} 40. gxf3 {[%clk 0:00:19]}  Kf6 {[%clk 0:00:32]} 41. Nf4 {[%clk 0:00:14]}  Rd7 {[%clk 0:00:28]} 42. Rxd7 {[%clk 0:00:12]}  Bxd7 {[%clk 0:00:28]} 43. Nd5+ {[%clk 0:00:13]}  Ke5 {[%clk 0:00:28]} 44. Nxc7 {[%clk 0:00:14]}  Bc8 {[%clk 0:00:28]} 45. Ne8 {[%clk 0:00:12]}  Kd4 {[%clk 0:00:27]} 46. Nd6 {[%clk 0:00:11]}  Bd7 {[%clk 0:00:27]} 47. f4 {[%clk 0:00:11]}  Kc3 {[%clk 0:00:26]} 48. f5 {[%clk 0:00:11]}  Kxb4 {[%clk 0:00:24]} 49. f6 {[%clk 0:00:11]}  Be6 {[%clk 0:00:24]} 50. c6 {[%clk 0:00:10]}  Kc5 {[%clk 0:00:23]} 51. f7 {[%clk 0:00:04]}  Bxf7 {[%clk 0:00:22]} 52. Nxf7 {[%clk 0:00:03]}  Kxc6 {[%clk 0:00:22]} 53. Ne5+ {[%clk 0:00:01]}  Kd5 {[%clk 0:00:23]} 54. Nd7 {[%clk 0:00:01]}  b4 {[%clk 0:00:22]} 55. Nf6+ {[%clk 0:00:02]}  Kd4 {[%clk 0:00:21]} 56. Ke2 {[%clk 0:00:02]}  Kc3 {[%clk 0:00:15]} 57. Nd5+ {[%clk 0:00:02]}  Kc4 {[%clk 0:00:15]} 58. Ne3+ {[%clk 0:00:01]}  Kb3 {[%clk 0:00:13]} 59. Kd3 {[%clk 0:00:01]}  h3 {[%clk 0:00:13]} 60. Ng4 {[%clk 0:00:02]}  Ka2 {[%clk 0:00:13]} 61. Nf2 {[%clk 0:00:02]}  h2 {[%clk 0:00:12]} 62. Kc4 {[%clk 0:00:03]}  b3 {[%clk 0:00:13]} 63. Kc5 {[%clk 0:00:03]}  b2 {[%clk 0:00:13]} 64. Kb6 {[%clk 0:00:04]}  b1=Q+ {[%clk 0:00:14]} 65. Kxa6 {[%clk 0:00:05]} 0-1


[Site "https://www.chess.com"]

[Event "Titled Tuesday Blitz May 25 2021"]
[White "Mortazavi, Ali"]
[Black "Kosteniuk, Alexandra"]
[WhiteFideId "401323"]
[BlackFideId "4128125"]
[WhiteElo "2533"]
[BlackElo "2702"]
[Result "0-1"]
[Round "09"]
[TimeControl "180+1"]
[Date "2021.05.25"]
[WhiteClock "0:00:13"]
[BlackClock "0:00:13"]

1. Nf3 {[%clk 0:03:00]}  Nf6 {[%clk 0:02:59]} 2. g3 {[%clk 0:03:00]}  d5 {[%clk 0:02:58]} 3. Bg2 {[%clk 0:03:01]}  b5 {[%clk 0:02:55]} 4. O-O {[%clk 0:03:01]}  Bb7 {[%clk 0:02:56]} 5. c3 {[%clk 0:02:59]}  Nbd7 {[%clk 0:02:52]} 6. a4 {[%clk 0:02:59]}  a6 {[%clk 0:02:50]} 7. Na3 {[%clk 0:02:59]}  c6 {[%clk 0:02:47]} 8. d4 {[%clk 0:02:49]}  e6 {[%clk 0:02:45]} 9. Nc2 {[%clk 0:02:36]}  g6 {[%clk 0:02:42]} 10. axb5 {[%clk 0:02:19]}  axb5 {[%clk 0:02:38]} 11. Rxa8 {[%clk 0:02:19]}  Qxa8 {[%clk 0:02:36]} 12. Bf4 {[%clk 0:02:12]}  Bg7 {[%clk 0:02:31]} 13. Bd6 {[%clk 0:02:07]}  Ne4 {[%clk 0:02:31]} 14. Ba3 {[%clk 0:02:06]}  c5 {[%clk 0:02:22]} 15. dxc5 {[%clk 0:01:57]}  Nexc5 {[%clk 0:02:17]} 16. Nfd4 {[%clk 0:01:43]}  Qa4 {[%clk 0:02:06]} 17. h4 {[%clk 0:01:26]}  O-O {[%clk 0:01:57]} 18. h5 {[%clk 0:01:26]}  e5 {[%clk 0:01:52]} 19. Nf3 {[%clk 0:01:25]}  Qg4 {[%clk 0:01:49]} 20. hxg6 {[%clk 0:01:24]}  hxg6 {[%clk 0:01:48]} 21. Ne3 {[%clk 0:01:19]}  Qe6 {[%clk 0:01:24]} 22. Ng5 {[%clk 0:01:09]}  Qe7 {[%clk 0:01:20]} 23. Bxd5 {[%clk 0:01:01]}  Bxd5 {[%clk 0:01:05]} 24. Qxd5 {[%clk 0:00:59]}  Qxg5 {[%clk 0:00:47]} 25. Bxc5 {[%clk 0:00:58]}  Nxc5 {[%clk 0:00:47]} 26. Qxc5 {[%clk 0:00:59]}  Rb8 {[%clk 0:00:45]} 27. Rd1 {[%clk 0:00:48]}  Qh5 {[%clk 0:00:44]} 28. g4 {[%clk 0:00:41]}  Qh4 {[%clk 0:00:41]} 29. Qc7 {[%clk 0:00:41]}  Rf8 {[%clk 0:00:38]} 30. Qd7 {[%clk 0:00:35]}  Bh6 {[%clk 0:00:33]} 31. Nd5 {[%clk 0:00:35]}  Bg5 {[%clk 0:00:26]} 32. Rd3 {[%clk 0:00:17]}  Rd8 {[%clk 0:00:26]} 33. Qc6 {[%clk 0:00:14]}  Qxg4+ {[%clk 0:00:23]} 34. Kf1 {[%clk 0:00:15]}  Qh4 {[%clk 0:00:14]} 35. e3 {[%clk 0:00:13]}  Qh1+ {[%clk 0:00:13]} 36. Ke2 {[%clk 0:00:14]}  Qh5+ {[%clk 0:00:13]} 37. Kd2 {[%clk 0:00:14]}  Kg7 {[%clk 0:00:13]} 38. Kc2 {[%clk 0:00:14]}  Qf3 {[%clk 0:00:13]} 39. Rd2 {[%clk 0:00:14]}  Qe4+ {[%clk 0:00:13]} 40. Kb3 {[%clk 0:00:13]}  Qa4# {[%clk 0:00:13]} 0-1


[Site "https://www.chess.com"]

[Event "Titled Tuesday Blitz May 25 2021"]
[White "Orlov, Oleg"]
[Black "Bortnyk, Olexandr"]
[WhiteFideId "4166612"]
[BlackFideId "14120828"]
[WhiteElo "2571"]
[BlackElo "2953"]
[Result "0-1"]
[Round "09"]
[TimeControl "180+1"]
[Date "2021.05.25"]
[WhiteClock "0:00:01"]
[BlackClock "0:00:03"]

1. Nf3 {[%clk 0:02:56]}  Nf6 {[%clk 0:03:00]} 2. c4 {[%clk 0:02:57]}  b6 {[%clk 0:02:59]} 3. g3 {[%clk 0:02:57]}  Bb7 {[%clk 0:03:00]} 4. Bg2 {[%clk 0:02:58]}  g6 {[%clk 0:03:01]} 5. O-O {[%clk 0:02:58]}  Bg7 {[%clk 0:03:01]} 6. d4 {[%clk 0:02:58]}  O-O {[%clk 0:03:02]} 7. d5 {[%clk 0:02:58]}  e6 {[%clk 0:03:01]} 8. Nc3 {[%clk 0:02:57]}  exd5 {[%clk 0:02:59]} 9. Nxd5 {[%clk 0:02:58]}  c6 {[%clk 0:02:59]} 10. Nc3 {[%clk 0:02:56]}  d5 {[%clk 0:02:59]} 11. cxd5 {[%clk 0:02:57]}  cxd5 {[%clk 0:03:00]} 12. Nd4 {[%clk 0:02:55]}  Nbd7 {[%clk 0:03:00]} 13. Bf4 {[%clk 0:02:50]}  Nc5 {[%clk 0:02:58]} 14. Ndb5 {[%clk 0:02:47]}  Qd7 {[%clk 0:02:55]} 15. Rc1 {[%clk 0:02:30]}  Rad8 {[%clk 0:02:38]} 16. Bc7 {[%clk 0:02:19]}  Rc8 {[%clk 0:02:28]} 17. Be5 {[%clk 0:02:16]}  Rfe8 {[%clk 0:01:45]} 18. f4 {[%clk 0:02:03]}  Ng4 {[%clk 0:01:36]} 19. Bxg7 {[%clk 0:02:04]}  Ne3 {[%clk 0:01:35]} 20. Qd4 {[%clk 0:02:02]}  Nxf1 {[%clk 0:01:26]} 21. Rxf1 {[%clk 0:01:42]}  Ne6 {[%clk 0:01:25]} 22. Bh3 {[%clk 0:01:42]}  f5 {[%clk 0:01:22]} 23. Qf6 {[%clk 0:01:31]}  Nxg7 {[%clk 0:01:19]} 24. Nxa7 {[%clk 0:01:28]}  Re6 {[%clk 0:00:59]} 25. Qd4 {[%clk 0:01:27]}  Rc4 {[%clk 0:00:49]} 26. Qd3 {[%clk 0:01:27]}  Ba6 {[%clk 0:00:26]} 27. b3 {[%clk 0:01:13]}  Rxc3 {[%clk 0:00:13]} 28. Qxa6 {[%clk 0:01:12]}  Rc2 {[%clk 0:00:06]} 29. Rf2 {[%clk 0:01:12]}  b5 {[%clk 0:00:06]} 30. Qa5 {[%clk 0:01:07]}  Rexe2 {[%clk 0:00:04]} 31. Rxe2 {[%clk 0:01:03]}  Rxe2 {[%clk 0:00:05]} 32. Bf1 {[%clk 0:01:03]}  Rc2 {[%clk 0:00:03]} 33. Nxb5 {[%clk 0:01:02]}  d4 {[%clk 0:00:03]} 34. Bc4+ {[%clk 0:01:01]}  Kf8 {[%clk 0:00:02]} 35. Qa8+ {[%clk 0:00:50]}  Ne8 {[%clk 0:00:03]} 36. Qf3 {[%clk 0:00:40]}  Nf6 {[%clk 0:00:03]} 37. Qd3 {[%clk 0:00:32]}  Rc1+ {[%clk 0:00:04]} 38. Kg2 {[%clk 0:00:22]}  Ng4 {[%clk 0:00:05]} 39. Qxd4 {[%clk 0:00:17]}  Rc2+ {[%clk 0:00:03]} 40. Kg1 {[%clk 0:00:16]}  Qxd4+ {[%clk 0:00:03]} 41. Nxd4 {[%clk 0:00:15]}  Rxa2 {[%clk 0:00:04]} 42. Ne6+ {[%clk 0:00:13]}  Ke7 {[%clk 0:00:04]} 43. Ng5 {[%clk 0:00:13]}  Nxh2 {[%clk 0:00:04]} 44. Nxh7 {[%clk 0:00:12]}  Nf3+ {[%clk 0:00:05]} 45. Kf1 {[%clk 0:00:12]}  Nd2+ {[%clk 0:00:05]} 46. Kg1 {[%clk 0:00:12]}  Ne4 {[%clk 0:00:06]} 47. Ng5 {[%clk 0:00:10]}  Nxg3 {[%clk 0:00:06]} 48. Nf3 {[%clk 0:00:11]}  Nh5 {[%clk 0:00:05]} 49. b4 {[%clk 0:00:08]}  Ra4 {[%clk 0:00:05]} 50. Ne5 {[%clk 0:00:05]}  Nxf4 {[%clk 0:00:05]} 51. Bb5 {[%clk 0:00:05]}  Ra1+ {[%clk 0:00:05]} 52. Kf2 {[%clk 0:00:05]}  Kd6 {[%clk 0:00:06]} 53. Nc4+ {[%clk 0:00:04]}  Kd5 {[%clk 0:00:06]} 54. Ne3+ {[%clk 0:00:04]}  Ke5 {[%clk 0:00:04]} 55. Nc4+ {[%clk 0:00:03]}  Kd4 {[%clk 0:00:05]} 56. Nd6 {[%clk 0:00:01]}  Nd5 {[%clk 0:00:03]} 0-1


[Site "https://www.chess.com"]

[Event "Titled Tuesday Blitz May 25 2021"]
[White "Ozkan, Ervin"]
[Black "Korkmaz, Necmettin"]
[WhiteFideId "6306004"]
[BlackFideId "6303285"]
[WhiteElo "2226"]
[BlackElo "2094"]
[Result "1-0"]
[Round "09"]
[TimeControl "180+1"]
[Date "2021.05.25"]
[WhiteClock "0:00:48"]
[BlackClock "0:00:55"]

1. d4 {[%clk 0:03:00]}  d5 {[%clk 0:02:59]} 2. Nf3 {[%clk 0:03:00]}  Nf6 {[%clk 0:02:58]} 3. Bf4 {[%clk 0:03:00]}  e6 {[%clk 0:02:51]} 4. e3 {[%clk 0:03:01]}  Bd6 {[%clk 0:02:50]} 5. Nbd2 {[%clk 0:03:01]}  O-O {[%clk 0:02:45]} 6. Bd3 {[%clk 0:02:46]}  c5 {[%clk 0:02:33]} 7. dxc5 {[%clk 0:02:45]}  Bxf4 {[%clk 0:02:29]} 8. exf4 {[%clk 0:02:46]}  Qa5 {[%clk 0:02:28]} 9. O-O {[%clk 0:02:40]}  Qxc5 {[%clk 0:02:28]} 10. Qe2 {[%clk 0:02:39]}  Nc6 {[%clk 0:02:23]} 11. c3 {[%clk 0:02:39]}  b6 {[%clk 0:02:19]} 12. Ne5 {[%clk 0:02:37]}  Bb7 {[%clk 0:02:14]} 13. Rac1 {[%clk 0:02:29]}  Rad8 {[%clk 0:02:09]} 14. Nb3 {[%clk 0:02:24]}  Qe7 {[%clk 0:02:08]} 15. Nxc6 {[%clk 0:02:13]}  Bxc6 {[%clk 0:02:08]} 16. Nd4 {[%clk 0:02:14]}  Bb7 {[%clk 0:02:06]} 17. Rfe1 {[%clk 0:02:13]}  Ne4 {[%clk 0:01:59]} 18. Qh5 {[%clk 0:01:49]}  g6 {[%clk 0:01:55]} 19. Qh6 {[%clk 0:01:49]}  Qf6 {[%clk 0:01:39]} 20. Re3 {[%clk 0:01:26]}  Rfe8 {[%clk 0:01:34]} 21. Rce1 {[%clk 0:01:24]}  Qg7 {[%clk 0:01:25]} 22. Qxg7+ {[%clk 0:01:20]}  Kxg7 {[%clk 0:01:25]} 23. f3 {[%clk 0:01:20]}  Nd6 {[%clk 0:01:18]} 24. g4 {[%clk 0:01:10]}  Rc8 {[%clk 0:01:05]} 25. Kf2 {[%clk 0:01:06]}  Red8 {[%clk 0:01:02]} 26. f5 {[%clk 0:00:54]}  exf5 {[%clk 0:01:00]} 27. gxf5 {[%clk 0:00:54]}  Rc7 {[%clk 0:00:58]} 28. Re7 {[%clk 0:00:51]}  Rdc8 {[%clk 0:00:57]} 29. Ne6+ {[%clk 0:00:49]}  Kf6 {[%clk 0:00:55]} 30. Rxc7 {[%clk 0:00:48]} 1-0


[Site "https://www.chess.com"]

[Event "Titled Tuesday Blitz May 25 2021"]
[White "Papasimakopoulos, Alexandros"]
[Black "Yuan, Qingyu"]
[WhiteFideId "4244125"]
[BlackFideId "8609772"]
[WhiteElo "2352"]
[BlackElo "2359"]
[Result "1-0"]
[Round "09"]
[TimeControl "180+1"]
[Date "2021.05.25"]
[WhiteClock "0:00:18"]
[BlackClock "0:00:02"]

1. d4 {[%clk 0:03:00]}  Nf6 {[%clk 0:02:59]} 2. c4 {[%clk 0:03:01]}  g6 {[%clk 0:03:00]} 3. Nc3 {[%clk 0:03:01]}  d5 {[%clk 0:03:00]} 4. Nf3 {[%clk 0:03:01]}  Bg7 {[%clk 0:03:00]} 5. Qb3 {[%clk 0:02:59]}  dxc4 {[%clk 0:02:58]} 6. Qxc4 {[%clk 0:03:00]}  O-O {[%clk 0:02:59]} 7. e4 {[%clk 0:02:59]}  a6 {[%clk 0:02:59]} 8. Be2 {[%clk 0:02:59]}  b5 {[%clk 0:02:59]} 9. Qb3 {[%clk 0:02:59]}  Bb7 {[%clk 0:02:53]} 10. e5 {[%clk 0:02:59]}  Nd5 {[%clk 0:02:52]} 11. O-O {[%clk 0:02:59]}  Nxc3 {[%clk 0:02:26]} 12. bxc3 {[%clk 0:02:45]}  Bd5 {[%clk 0:02:11]} 13. c4 {[%clk 0:02:33]}  bxc4 {[%clk 0:02:11]} 14. Bxc4 {[%clk 0:02:34]}  c6 {[%clk 0:02:07]} 15. Rd1 {[%clk 0:02:17]}  a5 {[%clk 0:01:43]} 16. Ba3 {[%clk 0:02:05]}  Qd7 {[%clk 0:01:25]} 17. Rab1 {[%clk 0:01:56]}  a4 {[%clk 0:00:54]} 18. Qb4 {[%clk 0:01:46]}  Na6 {[%clk 0:00:51]} 19. Qc3 {[%clk 0:01:36]}  Nc7 {[%clk 0:00:47]} 20. Rb7 {[%clk 0:01:28]}  Rfb8 {[%clk 0:00:25]} 21. Rdb1 {[%clk 0:01:16]}  Nb5 {[%clk 0:00:23]} 22. Rxb8+ {[%clk 0:01:00]}  Rxb8 {[%clk 0:00:23]} 23. Qd3 {[%clk 0:00:56]}  Rb7 {[%clk 0:00:20]} 24. Bc5 {[%clk 0:00:49]}  h6 {[%clk 0:00:18]} 25. a3 {[%clk 0:00:45]}  Bf8 {[%clk 0:00:11]} 26. h3 {[%clk 0:00:45]}  e6 {[%clk 0:00:11]} 27. Bxf8 {[%clk 0:00:41]}  Kxf8 {[%clk 0:00:11]} 28. Nd2 {[%clk 0:00:39]}  Kg7 {[%clk 0:00:08]} 29. Ne4 {[%clk 0:00:32]}  Bxe4 {[%clk 0:00:08]} 30. Qxe4 {[%clk 0:00:31]}  Rc7 {[%clk 0:00:04]} 31. Bxb5 {[%clk 0:00:29]}  cxb5 {[%clk 0:00:04]} 32. Qd3 {[%clk 0:00:28]}  Rc4 {[%clk 0:00:04]} 33. Rd1 {[%clk 0:00:27]}  Qd5 {[%clk 0:00:03]} 34. Kh2 {[%clk 0:00:24]}  b4 {[%clk 0:00:03]} 35. axb4 {[%clk 0:00:24]}  Rxb4 {[%clk 0:00:04]} 36. Qe3 {[%clk 0:00:22]}  Rc4 {[%clk 0:00:02]} 37. Qf4 {[%clk 0:00:22]}  Qd8 {[%clk 0:00:03]} 38. Rd3 {[%clk 0:00:21]}  a3 {[%clk 0:00:02]} 39. Rf3 {[%clk 0:00:17]}  Qd7 {[%clk 0:00:02]} 40. Rxa3 {[%clk 0:00:17]}  Rxd4 {[%clk 0:00:02]} 41. Qf6+ {[%clk 0:00:18]}  Kh7 {[%clk 0:00:02]} 42. Ra8 {[%clk 0:00:18]} 1-0


[Site "https://www.chess.com"]

[Event "Titled Tuesday Blitz May 25 2021"]
[White "Perrine, Dalton"]
[Black "Petukhov, Dmitry"]
[WhiteFideId "2048434"]
[BlackFideId "4142748"]
[WhiteElo "2556"]
[BlackElo "2356"]
[Result "0-1"]
[Round "09"]
[TimeControl "180+1"]
[Date "2021.05.25"]
[WhiteClock "0:00:01"]
[BlackClock "0:00:13"]

1. Nf3 {[%clk 0:03:00]}  Nf6 {[%clk 0:02:55]} 2. g3 {[%clk 0:03:00]}  g6 {[%clk 0:02:55]} 3. b3 {[%clk 0:03:01]}  Bg7 {[%clk 0:02:56]} 4. Bb2 {[%clk 0:03:01]}  O-O {[%clk 0:02:56]} 5. Bg2 {[%clk 0:03:02]}  d5 {[%clk 0:02:56]} 6. c4 {[%clk 0:03:01]}  c5 {[%clk 0:02:55]} 7. cxd5 {[%clk 0:03:01]}  Qxd5 {[%clk 0:02:55]} 8. Nc3 {[%clk 0:02:58]}  Qd8 {[%clk 0:02:55]} 9. Ne5 {[%clk 0:02:42]}  Nbd7 {[%clk 0:02:51]} 10. Nc4 {[%clk 0:02:34]}  Rb8 {[%clk 0:02:48]} 11. a4 {[%clk 0:02:28]}  Nb6 {[%clk 0:02:45]} 12. a5 {[%clk 0:02:19]}  Nbd5 {[%clk 0:02:38]} 13. Nxd5 {[%clk 0:02:14]}  Nxd5 {[%clk 0:02:39]} 14. Bxg7 {[%clk 0:02:15]}  Kxg7 {[%clk 0:02:39]} 15. O-O {[%clk 0:02:03]}  Nb4 {[%clk 0:02:34]} 16. Qc1 {[%clk 0:01:51]}  f6 {[%clk 0:02:33]} 17. Qc3 {[%clk 0:01:45]}  Be6 {[%clk 0:02:28]} 18. d3 {[%clk 0:01:40]}  Bd5 {[%clk 0:02:22]} 19. Ne3 {[%clk 0:01:33]}  Bxg2 {[%clk 0:02:20]} 20. Kxg2 {[%clk 0:01:33]}  Qd6 {[%clk 0:02:14]} 21. Rfc1 {[%clk 0:01:29]}  Rbc8 {[%clk 0:02:05]} 22. Qc4 {[%clk 0:01:28]}  Rfd8 {[%clk 0:01:50]} 23. h4 {[%clk 0:01:25]}  Qc6+ {[%clk 0:01:42]} 24. Kg1 {[%clk 0:01:05]}  Rd4 {[%clk 0:01:41]} 25. Qxd4 {[%clk 0:00:57]}  cxd4 {[%clk 0:01:42]} 26. Rxc6 {[%clk 0:00:58]}  Rxc6 {[%clk 0:01:41]} 27. Nc4 {[%clk 0:00:57]}  e5 {[%clk 0:01:28]} 28. g4 {[%clk 0:00:50]}  Kf7 {[%clk 0:01:27]} 29. g5 {[%clk 0:00:46]}  Ke6 {[%clk 0:01:22]} 30. gxf6 {[%clk 0:00:40]}  Kxf6 {[%clk 0:01:22]} 31. Kg2 {[%clk 0:00:38]}  Ke6 {[%clk 0:01:21]} 32. h5 {[%clk 0:00:33]}  Kd5 {[%clk 0:01:21]} 33. Rh1 {[%clk 0:00:29]}  g5 {[%clk 0:01:09]} 34. h6 {[%clk 0:00:22]}  Ke6 {[%clk 0:01:04]} 35. Kg3 {[%clk 0:00:14]}  Kf5 {[%clk 0:01:02]} 36. e4+ {[%clk 0:00:11]}  dxe3 {[%clk 0:00:58]} 37. Nxe3+ {[%clk 0:00:10]}  Kg6 {[%clk 0:00:58]} 38. Rd1 {[%clk 0:00:08]}  Kxh6 {[%clk 0:00:56]} 39. Ng4+ {[%clk 0:00:09]}  Kg7 {[%clk 0:00:52]} 40. Nxe5 {[%clk 0:00:10]}  Rc3 {[%clk 0:00:51]} 41. Kg4 {[%clk 0:00:10]}  h6 {[%clk 0:00:47]} 42. f4 {[%clk 0:00:10]}  Kf6 {[%clk 0:00:37]} 43. d4 {[%clk 0:00:06]}  gxf4 {[%clk 0:00:32]} 44. Kxf4 {[%clk 0:00:07]}  Rxb3 {[%clk 0:00:30]} 45. Rh1 {[%clk 0:00:06]}  Nd5+ {[%clk 0:00:31]} 46. Ke4 {[%clk 0:00:06]}  Nc3+ {[%clk 0:00:27]} 47. Kd3 {[%clk 0:00:07]}  Na2+ {[%clk 0:00:16]} 48. Kc4 {[%clk 0:00:05]}  Rc3+ {[%clk 0:00:16]} 49. Kd5 {[%clk 0:00:04]}  Kg7 {[%clk 0:00:17]} 50. Ke4 {[%clk 0:00:03]}  Nb4 {[%clk 0:00:17]} 51. Rg1+ {[%clk 0:00:03]}  Kh7 {[%clk 0:00:16]} 52. Rf1 {[%clk 0:00:04]}  Nc6 {[%clk 0:00:15]} 53. Rf7+ {[%clk 0:00:04]}  Kg8 {[%clk 0:00:15]} 54. Rxb7 {[%clk 0:00:05]}  Nxa5 {[%clk 0:00:14]} 55. Rxa7 {[%clk 0:00:05]}  Nb3 {[%clk 0:00:14]} 56. Ng6 {[%clk 0:00:04]}  Nd2+ {[%clk 0:00:13]} 57. Kd5 {[%clk 0:00:04]}  Rg3 {[%clk 0:00:12]} 58. Ke5 {[%clk 0:00:03]}  Rxg6 {[%clk 0:00:12]} 59. d5 {[%clk 0:00:03]}  Rg7 {[%clk 0:00:13]} 60. Ra8+ {[%clk 0:00:03]}  Kh7 {[%clk 0:00:13]} 61. d6 {[%clk 0:00:03]}  Rg5+ {[%clk 0:00:14]} 62. Ke6 {[%clk 0:00:03]}  Rg6+ {[%clk 0:00:14]} 63. Ke7 {[%clk 0:00:03]}  Rg7+ {[%clk 0:00:14]} 64. Ke8 {[%clk 0:00:03]}  Ne4 {[%clk 0:00:12]} 65. Rd8 {[%clk 0:00:01]}  Nf6+ {[%clk 0:00:13]} 66. Kf8 {[%clk 0:00:01]}  Kg6 {[%clk 0:00:13]} 0-1


[Site "https://www.chess.com"]

[Event "Titled Tuesday Blitz May 25 2021"]
[White "Piesik, Piotr"]
[Black "Enriquack"]
[WhiteFideId "1136194"]
[WhiteElo "2369"]
[BlackElo "2403"]
[Result "1-0"]
[Round "09"]
[TimeControl "180+1"]
[Date "2021.05.25"]
[WhiteClock "0:00:57"]
[BlackClock "0:00:21"]

1. Nf3 {[%clk 0:03:00]}  Nf6 {[%clk 0:02:50]} 2. g3 {[%clk 0:03:00]}  d5 {[%clk 0:02:49]} 3. Bg2 {[%clk 0:03:01]}  Bf5 {[%clk 0:02:49]} 4. O-O {[%clk 0:03:01]}  e6 {[%clk 0:02:42]} 5. d3 {[%clk 0:03:01]}  c6 {[%clk 0:02:41]} 6. Nbd2 {[%clk 0:03:02]}  h6 {[%clk 0:02:41]} 7. Qe1 {[%clk 0:03:02]}  Be7 {[%clk 0:02:39]} 8. e4 {[%clk 0:03:03]}  Bh7 {[%clk 0:02:38]} 9. Qe2 {[%clk 0:03:03]}  O-O {[%clk 0:02:38]} 10. b3 {[%clk 0:03:03]}  a5 {[%clk 0:02:36]} 11. a4 {[%clk 0:03:04]}  Na6 {[%clk 0:02:32]} 12. Bb2 {[%clk 0:03:04]}  Nb4 {[%clk 0:02:31]} 13. Ne1 {[%clk 0:03:04]}  dxe4 {[%clk 0:02:14]} 14. dxe4 {[%clk 0:03:04]}  Qb6 {[%clk 0:01:57]} 15. Nc4 {[%clk 0:03:02]}  Qc5 {[%clk 0:01:57]} 16. Nd3 {[%clk 0:02:48]}  Qa7 {[%clk 0:01:45]} 17. Nxb4 {[%clk 0:02:42]}  axb4 {[%clk 0:01:44]} 18. Rfd1 {[%clk 0:02:40]}  Rfd8 {[%clk 0:01:44]} 19. Ne5 {[%clk 0:02:26]}  Bc5 {[%clk 0:01:36]} 20. Nd3 {[%clk 0:02:24]}  Be7 {[%clk 0:01:36]} 21. Kh1 {[%clk 0:02:11]}  Qa5 {[%clk 0:01:07]} 22. f3 {[%clk 0:02:09]}  Rac8 {[%clk 0:01:06]} 23. Ne5 {[%clk 0:02:06]}  Ne8 {[%clk 0:00:58]} 24. Bf1 {[%clk 0:01:59]}  Bf6 {[%clk 0:00:53]} 25. Nc4 {[%clk 0:01:57]}  Qh5 {[%clk 0:00:51]} 26. e5 {[%clk 0:01:48]}  Be7 {[%clk 0:00:47]} 27. Kg2 {[%clk 0:01:29]}  b5 {[%clk 0:00:44]} 28. Nb6 {[%clk 0:01:25]}  Rb8 {[%clk 0:00:41]} 29. a5 {[%clk 0:01:24]}  Bc5 {[%clk 0:00:35]} 30. Nd7 {[%clk 0:01:23]}  Ba7 {[%clk 0:00:28]} 31. Nxb8 {[%clk 0:01:22]}  Rxb8 {[%clk 0:00:28]} 32. Rd7 {[%clk 0:01:15]}  Ra8 {[%clk 0:00:27]} 33. a6 {[%clk 0:01:08]}  Qf5 {[%clk 0:00:24]} 34. Rd2 {[%clk 0:01:01]}  Kf8 {[%clk 0:00:22]} 35. Qe1 {[%clk 0:00:57]}  Nc7 {[%clk 0:00:21]} 36. Bd3 {[%clk 0:00:57]} 1-0


[Site "https://www.chess.com"]

[Event "Titled Tuesday Blitz May 25 2021"]
[White "Ronka, Erik"]
[Black "Gracia Alvarez, Gerardo Antonio"]
[WhiteFideId "505080"]
[BlackFideId "5109124"]
[WhiteElo "2264"]
[BlackElo "2148"]
[Result "1-0"]
[Round "09"]
[TimeControl "180+1"]
[Date "2021.05.25"]
[WhiteClock "0:00:38"]
[BlackClock "0:00:01"]

1. d4 {[%clk 0:03:00]}  Nf6 {[%clk 0:02:59]} 2. c4 {[%clk 0:03:01]}  c5 {[%clk 0:03:00]} 3. d5 {[%clk 0:03:00]}  b5 {[%clk 0:03:00]} 4. cxb5 {[%clk 0:03:01]}  a6 {[%clk 0:03:00]} 5. f3 {[%clk 0:03:02]}  axb5 {[%clk 0:02:41]} 6. e4 {[%clk 0:03:01]}  e6 {[%clk 0:02:35]} 7. dxe6 {[%clk 0:02:52]}  fxe6 {[%clk 0:02:34]} 8. Bxb5 {[%clk 0:02:50]}  Qa5+ {[%clk 0:02:33]} 9. Nc3 {[%clk 0:02:49]}  Ba6 {[%clk 0:02:33]} 10. Bxa6 {[%clk 0:02:47]}  Qxa6 {[%clk 0:02:31]} 11. Nge2 {[%clk 0:02:33]}  Nc6 {[%clk 0:02:31]} 12. O-O {[%clk 0:02:32]}  Be7 {[%clk 0:02:27]} 13. Bf4 {[%clk 0:02:21]}  Rd8 {[%clk 0:01:58]} 14. Bc7 {[%clk 0:02:08]}  Rc8 {[%clk 0:01:56]} 15. Bd6 {[%clk 0:02:08]}  O-O {[%clk 0:01:18]} 16. e5 {[%clk 0:01:57]}  Nd5 {[%clk 0:01:08]} 17. Nxd5 {[%clk 0:01:48]}  Bxd6 {[%clk 0:01:09]} 18. exd6 {[%clk 0:01:44]}  exd5 {[%clk 0:01:06]} 19. Qxd5+ {[%clk 0:01:44]}  Kh8 {[%clk 0:01:07]} 20. Nc3 {[%clk 0:01:32]}  Nd4 {[%clk 0:00:59]} 21. Ne4 {[%clk 0:01:25]}  Rf5 {[%clk 0:00:51]} 22. Nxc5 {[%clk 0:01:06]}  Ne2+ {[%clk 0:00:07]} 23. Kh1 {[%clk 0:00:58]}  Rxc5 {[%clk 0:00:08]} 24. Qe4 {[%clk 0:00:56]}  Rce5 {[%clk 0:00:06]} 25. Qh4 {[%clk 0:00:56]}  Qb6 {[%clk 0:00:05]} 26. Rae1 {[%clk 0:00:53]}  Rh5 {[%clk 0:00:03]} 27. Qg4 {[%clk 0:00:49]}  Rhg5 {[%clk 0:00:02]} 28. Rxe2 {[%clk 0:00:44]}  Rxg4 {[%clk 0:00:01]} 29. Rxe5 {[%clk 0:00:45]}  h5 {[%clk 0:00:01]} 30. fxg4 {[%clk 0:00:44]}  Qxb2 {[%clk 0:00:01]} 31. Rxh5+ {[%clk 0:00:42]}  Kg8 {[%clk 0:00:01]} 32. Rhf5 {[%clk 0:00:39]}  Qxa2 {[%clk 0:00:01]} 33. Rf7 {[%clk 0:00:38]} 1-0


[Site "https://www.chess.com"]